[Event "*** Titled Tuesday Blitz"]
[Site "Chess.com"]
[Date "2021.03.16"]
[Round "5"]
[White "Tactickl"]
[Black "NiranjanNavalgund"]
[Result "0-1"]
[WhiteElo "2768"]
[BlackElo "2529"]
[TimeControl "180+1"]
[EndTime "10:54:26 PDT"]
[Termination "NiranjanNavalgund won by resignation"]

1. d4 {[%clk 0:03:00.6]} 1... Nf6 {[%clk 0:02:59.7]} 2. Bf4 {[%clk 0:03:00.7]}
2... d5 {[%clk 0:02:58.8]} 3. e3 {[%clk 0:03:01.2]} 3... e6 {[%clk 0:02:59]} 4.
Nd2 {[%clk 0:03:01.1]} 4... Bd6 {[%clk 0:02:59.3]} 5. Bg3 {[%clk 0:03:01.6]}
5... c5 {[%clk 0:02:58.1]} 6. c3 {[%clk 0:03:01.7]} 6... Qc7 {[%clk 0:02:58.3]}
7. Ngf3 {[%clk 0:02:58.9]} 7... Nbd7 {[%clk 0:02:58.6]} 8. Bb5 {[%clk
0:02:47.7]} 8... O-O {[%clk 0:02:57.6]} 9. Bxd7 {[%clk 0:02:46.2]} 9... Nxd7
{[%clk 0:02:57.3]} 10. e4 {[%clk 0:02:46.5]} 10... cxd4 {[%clk 0:02:48.1]} 11.
Nxd4 {[%clk 0:02:44.7]} 11... a6 {[%clk 0:02:33.8]} 12. exd5 {[%clk 0:02:38.8]}
12... exd5 {[%clk 0:02:33.9]} 13. O-O {[%clk 0:02:34.4]} 13... Nf6 {[%clk
0:02:30.8]} 14. Re1 {[%clk 0:02:27.3]} 14... Bg4 {[%clk 0:02:30]} 15. Qc2 {[%clk
0:02:25.3]} 15... Rfe8 {[%clk 0:02:27.5]} 16. Nf5 {[%clk 0:02:23]} 16... Bxg3
{[%clk 0:02:26.8]} 17. hxg3 {[%clk 0:02:18.3]} 17... Re5 {[%clk 0:02:01.3]} 18.
Ne3 {[%clk 0:02:02.3]} 18... Rae8 {[%clk 0:01:55.5]} 19. Nb3 {[%clk 0:02:02.9]}
19... Bh5 {[%clk 0:01:40.4]} 20. Nd4 {[%clk 0:01:57.7]} 20... Bg6 {[%clk
0:01:40.4]} 21. Qb3 {[%clk 0:01:54.9]} 21... h5 {[%clk 0:01:32.7]} 22. Rad1
{[%clk 0:01:52.7]} 22... h4 {[%clk 0:01:29.7]} 23. Nf3 {[%clk 0:01:52.8]} 23...
hxg3 {[%clk 0:01:24.5]} 24. Nxe5 {[%clk 0:01:46]} 24... gxf2+ {[%clk 0:01:24.7]}
25. Kxf2 {[%clk 0:01:46.5]} 25... Rxe5 {[%clk 0:01:18.1]} 26. Qb4 {[%clk
0:01:09.4]} 26... Ne4+ {[%clk 0:01:01.9]} 27. Kf1 {[%clk 0:00:53.5]} 27... Rh5
{[%clk 0:00:47.5]} 28. Nxd5 {[%clk 0:00:53.6]} 28... Rh1+ {[%clk 0:00:18.3]} 29.
Ke2 {[%clk 0:00:53.2]} 29... Bh5+ {[%clk 0:00:16.3]} 30. Ke3 {[%clk 0:00:36]}
30... Qg3+ {[%clk 0:00:15.8]} 31. Kd4 {[%clk 0:00:35.2]} 31... Rxe1 {[%clk
0:00:10.7]} 32. Rxe1 {[%clk 0:00:36.1]} 32... Qxe1 {[%clk 0:00:10.5]} 33. Qe7
{[%clk 0:00:33.4]} 33... Bg6 {[%clk 0:00:08.4]} 34. Qe8+ {[%clk 0:00:25.6]}
34... Kh7 {[%clk 0:00:08.2]} 35. Ne7 {[%clk 0:00:14.1]} 35... Qd2+ {[%clk
0:00:08.3]} 36. Kc4 {[%clk 0:00:13.4]} 36... Nd6+ {[%clk 0:00:08.7]} 37. Kb3
{[%clk 0:00:13.7]} 37... Nxe8 {[%clk 0:00:09.6]} 0-1

[Event "*** Titled Tuesday Blitz"]
[Site "Chess.com"]
[Date "2021.03.16"]
[Round "5"]
[White "Fortitudine"]
[Black "DanilovVladimir"]
[Result "1-0"]
[WhiteElo "2301"]
[BlackElo "2427"]
[TimeControl "180+1"]
[EndTime "10:54:27 PDT"]
[Termination "Fortitudine won by resignation"]

1. c4 {[%clk 0:03:00.9]} 1... e5 {[%clk 0:02:59.2]} 2. g3 {[%clk 0:03:00.6]}
2... Nc6 {[%clk 0:02:58.1]} 3. Bg2 {[%clk 0:02:58.9]} 3... g6 {[%clk 0:02:58.4]}
4. Nc3 {[%clk 0:02:57.9]} 4... Bg7 {[%clk 0:02:58.1]} 5. e4 {[%clk 0:02:56.6]}
5... Nge7 {[%clk 0:02:45.2]} 6. d3 {[%clk 0:02:55.8]} 6... O-O {[%clk
0:02:43.9]} 7. Nge2 {[%clk 0:02:54.3]} 7... d6 {[%clk 0:01:55.1]} 8. O-O {[%clk
0:02:52.4]} 8... f5 {[%clk 0:01:51.4]} 9. Nd5 {[%clk 0:02:33.1]} 9... Nxd5
{[%clk 0:01:47.1]} 10. cxd5 {[%clk 0:02:32.5]} 10... Ne7 {[%clk 0:01:46.9]} 11.
Bg5 {[%clk 0:01:48.7]} 11... h6 {[%clk 0:01:45.9]} 12. Be3 {[%clk 0:01:44]}
12... c6 {[%clk 0:01:44.4]} 13. dxc6 {[%clk 0:01:36.4]} 13... bxc6 {[%clk
0:01:39.4]} 14. d4 {[%clk 0:01:26.4]} 14... Qa5 {[%clk 0:01:20.6]} 15. dxe5
{[%clk 0:01:13.8]} 15... dxe5 {[%clk 0:01:20.8]} 16. Qd6 {[%clk 0:01:01.2]}
16... Re8 {[%clk 0:00:38.6]} 17. Nc3 {[%clk 0:00:47.1]} 17... Ba6 {[%clk
0:00:37.6]} 18. Rfd1 {[%clk 0:00:36.1]} 18... Kh7 {[%clk 0:00:36.6]} 19. exf5
{[%clk 0:00:32.4]} 19... Nxf5 {[%clk 0:00:34.3]} 20. Qxc6 {[%clk 0:00:27.3]}
20... Nxe3 {[%clk 0:00:30.6]} 21. fxe3 {[%clk 0:00:28.2]} 21... Rac8 {[%clk
0:00:29.4]} 22. Qd5 {[%clk 0:00:22.5]} 22... Qb6 {[%clk 0:00:28.2]} 23. Qe4
{[%clk 0:00:16.7]} 23... Qxb2 {[%clk 0:00:27.7]} 24. Nd5 {[%clk 0:00:16.4]}
24... Bb7 {[%clk 0:00:19.2]} 25. Rab1 {[%clk 0:00:14.9]} 25... Bxd5 {[%clk
0:00:19.5]} 26. Rxb2 {[%clk 0:00:13.5]} 26... Bxe4 {[%clk 0:00:19.2]} 27. Bxe4
{[%clk 0:00:14.4]} 27... Rc4 {[%clk 0:00:19.4]} 28. Bd3 {[%clk 0:00:12.3]} 28...
Ra4 {[%clk 0:00:19.4]} 29. Rb7 {[%clk 0:00:11.3]} 29... e4 {[%clk 0:00:18.9]}
30. Bc2 {[%clk 0:00:10.1]} 30... Rxa2 {[%clk 0:00:18.9]} 31. Bb3 {[%clk
0:00:10.7]} 31... Ra3 {[%clk 0:00:15.8]} 32. Rdd7 {[%clk 0:00:11.1]} 32... Ra1+
{[%clk 0:00:13.9]} 33. Kg2 {[%clk 0:00:10.9]} 1-0

[Event "*** Titled Tuesday Blitz"]
[Site "Chess.com"]
[Date "2021.03.16"]
[Round "5"]
[White "Genghis_K"]
[Black "Nesty_Javi_Chess"]
[Result "1-0"]
[WhiteElo "2889"]
[BlackElo "2631"]
[TimeControl "180+1"]
[EndTime "10:54:28 PDT"]
[Termination "Genghis_K won by resignation"]

1. e4 {[%clk 0:03:00.2]} 1... e5 {[%clk 0:02:49.3]} 2. Nf3 {[%clk 0:02:58.6]}
2... Nc6 {[%clk 0:02:50.2]} 3. Bc4 {[%clk 0:02:54.3]} 3... g6 {[%clk 0:02:49.9]}
4. d4 {[%clk 0:02:47.2]} 4... exd4 {[%clk 0:02:47.4]} 5. c3 {[%clk 0:02:47.7]}
5... d3 {[%clk 0:02:46.5]} 6. O-O {[%clk 0:02:46.6]} 6... Bg7 {[%clk 0:02:46.8]}
7. Bxd3 {[%clk 0:02:45.5]} 7... Nge7 {[%clk 0:02:46.3]} 8. c4 {[%clk 0:02:44.4]}
8... d6 {[%clk 0:02:46.5]} 9. h3 {[%clk 0:02:44.5]} 9... O-O {[%clk 0:02:47]}
10. Nc3 {[%clk 0:02:44.9]} 10... h6 {[%clk 0:02:47.3]} 11. Re1 {[%clk
0:02:45.1]} 11... f5 {[%clk 0:02:44.3]} 12. exf5 {[%clk 0:02:43.9]} 12... Bxf5
{[%clk 0:02:33.9]} 13. Bxf5 {[%clk 0:02:34.7]} 13... Nxf5 {[%clk 0:02:34.8]} 14.
Nd5 {[%clk 0:02:34.2]} 14... Qd7 {[%clk 0:02:26.2]} 15. Bd2 {[%clk 0:02:23.5]}
15... Rae8 {[%clk 0:02:16.5]} 16. Qb3 {[%clk 0:02:16.7]} 16... b6 {[%clk
0:02:01.9]} 17. Bc3 {[%clk 0:02:12.4]} 17... Nfd4 {[%clk 0:01:48.1]} 18. Nxd4
{[%clk 0:02:00]} 18... Nxd4 {[%clk 0:01:49]} 19. Qd1 {[%clk 0:01:33.5]} 19...
Rxe1+ {[%clk 0:01:38.7]} 20. Bxe1 {[%clk 0:01:34.4]} 20... c6 {[%clk 0:01:31.7]}
21. Ne3 {[%clk 0:01:32.9]} 21... Qf7 {[%clk 0:01:27.4]} 22. Qd3 {[%clk
0:01:27.9]} 22... b5 {[%clk 0:00:33]} 23. Rd1 {[%clk 0:01:23.5]} 23... bxc4
{[%clk 0:00:29]} 24. Qxc4 {[%clk 0:01:24]} 24... Qxc4 {[%clk 0:00:15.6]} 25.
Nxc4 {[%clk 0:01:24]} 25... d5 {[%clk 0:00:16.5]} 26. Na5 {[%clk 0:01:23.5]}
26... c5 {[%clk 0:00:16.8]} 27. Kf1 {[%clk 0:01:19.8]} 27... Rd8 {[%clk
0:00:16.6]} 28. Bc3 {[%clk 0:01:16.3]} 28... Ne6 {[%clk 0:00:16.5]} 29. Nc6
{[%clk 0:01:12.4]} 29... Rd7 {[%clk 0:00:15.9]} 30. Rxd5 {[%clk 0:01:10.4]}
30... Rxd5 {[%clk 0:00:14.5]} 31. Ne7+ {[%clk 0:01:10.5]} 31... Kf7 {[%clk
0:00:14.8]} 32. Nxd5 {[%clk 0:01:11.4]} 32... Bxc3 {[%clk 0:00:15.5]} 33. Nxc3
{[%clk 0:01:11.4]} 33... Kf6 {[%clk 0:00:13.9]} 34. Ke2 {[%clk 0:01:10.6]} 34...
Ke5 {[%clk 0:00:14.1]} 35. Ke3 {[%clk 0:01:10.5]} 35... c4 {[%clk 0:00:13]} 36.
g3 {[%clk 0:01:10.4]} 36... Kd6 {[%clk 0:00:07.2]} 37. f4 {[%clk 0:01:07.3]}
37... Kc5 {[%clk 0:00:05.5]} 38. Ke4 {[%clk 0:01:06.7]} 38... Kb4 {[%clk
0:00:03.4]} 39. Ke5 {[%clk 0:01:04.9]} 39... Nc5 {[%clk 0:00:03.4]} 40. Kd4
{[%clk 0:01:01.5]} 40... Nd3 {[%clk 0:00:03.1]} 41. b3 {[%clk 0:00:52.5]} 41...
Nc5 {[%clk 0:00:01.5]} 42. Nd5+ {[%clk 0:00:51.1]} 42... Ka3 {[%clk 0:00:01.7]}
43. Kxc5 {[%clk 0:00:48.9]} 43... cxb3 {[%clk 0:00:01.9]} 44. axb3 {[%clk
0:00:48.8]} 44... Kxb3 {[%clk 0:00:02.8]} 45. g4 {[%clk 0:00:48.2]} 45... a5
{[%clk 0:00:03.7]} 46. f5 {[%clk 0:00:48.8]} 46... gxf5 {[%clk 0:00:04.6]} 47.
gxf5 {[%clk 0:00:49.7]} 47... a4 {[%clk 0:00:05.5]} 48. f6 {[%clk 0:00:50.1]}
48... a3 {[%clk 0:00:06.4]} 49. Nb4 {[%clk 0:00:50.7]} 49... Kc3 {[%clk
0:00:06.9]} 50. f7 {[%clk 0:00:50.8]} 1-0

[Event "*** Titled Tuesday Blitz"]
[Site "Chess.com"]
[Date "2021.03.16"]
[Round "5"]
[White "Myshakov_Fedor"]
[Black "SaqoChess_Twitch"]
[Result "0-1"]
[WhiteElo "2338"]
[BlackElo "2495"]
[TimeControl "180+1"]
[EndTime "10:54:30 PDT"]
[Termination "SaqoChess_Twitch won on time"]

1. c4 {[%clk 0:02:54.8]} 1... e5 {[%clk 0:02:59.6]} 2. Nc3 {[%clk 0:02:54.7]}
2... Nc6 {[%clk 0:03:00.2]} 3. Nf3 {[%clk 0:02:54.9]} 3... Nf6 {[%clk
0:03:00.8]} 4. g3 {[%clk 0:02:55]} 4... Bc5 {[%clk 0:02:58.9]} 5. Bg2 {[%clk
0:02:54.7]} 5... O-O {[%clk 0:02:59.1]} 6. O-O {[%clk 0:02:54.5]} 6... a6 {[%clk
0:02:59.7]} 7. e3 {[%clk 0:02:54.8]} 7... d6 {[%clk 0:02:59.6]} 8. d4 {[%clk
0:02:55.2]} 8... exd4 {[%clk 0:02:59.6]} 9. Nxd4 {[%clk 0:02:55.5]} 9... Nxd4
{[%clk 0:02:58.7]} 10. exd4 {[%clk 0:02:56.4]} 10... Ba7 {[%clk 0:02:59.5]} 11.
a3 {[%clk 0:02:56.1]} 11... h6 {[%clk 0:02:59.6]} 12. b4 {[%clk 0:02:56]} 12...
Re8 {[%clk 0:03:00]} 13. c5 {[%clk 0:02:55.9]} 13... dxc5 {[%clk 0:03:00.6]} 14.
dxc5 {[%clk 0:02:56]} 14... Qxd1 {[%clk 0:02:59.7]} 15. Rxd1 {[%clk 0:02:55.7]}
15... c6 {[%clk 0:02:58.7]} 16. Na4 {[%clk 0:02:54.5]} 16... Bg4 {[%clk
0:02:56.7]} 17. f3 {[%clk 0:02:54.3]} 17... Bf5 {[%clk 0:02:51.9]} 18. Ra2
{[%clk 0:02:50.4]} 18... Be6 {[%clk 0:02:49.8]} 19. Rb2 {[%clk 0:02:49.5]} 19...
Bb8 {[%clk 0:02:49.6]} 20. Nb6 {[%clk 0:02:49]} 20... Be5 {[%clk 0:02:50.2]} 21.
Re2 {[%clk 0:02:46.2]} 21... Bb3 {[%clk 0:02:45.9]} 22. Rd3 {[%clk 0:02:44.7]}
22... Bd4+ {[%clk 0:02:34]} 23. Be3 {[%clk 0:02:41]} 23... Bxe3+ {[%clk
0:02:24.6]} 24. Rexe3 {[%clk 0:02:22.3]} 24... Bc2 {[%clk 0:02:21.6]} 25. Rc3
{[%clk 0:01:51.2]} 25... Rxe3 {[%clk 0:02:20.9]} 26. Rxe3 {[%clk 0:01:52.1]}
26... Rb8 {[%clk 0:02:12.6]} 27. Re7 {[%clk 0:01:47.1]} 27... Kf8 {[%clk
0:02:12.3]} 28. Rc7 {[%clk 0:01:45.7]} 28... Bf5 {[%clk 0:02:09.5]} 29. g4
{[%clk 0:01:38.6]} 29... Be6 {[%clk 0:02:09.5]} 30. Bf1 {[%clk 0:01:33.5]} 30...
Ke8 {[%clk 0:02:08.1]} 31. Bc4 {[%clk 0:01:14.2]} 31... Kd8 {[%clk 0:02:08.3]}
32. Rxf7 {[%clk 0:01:10.1]} 32... Bxf7 {[%clk 0:02:07.7]} 33. Bxf7 {[%clk
0:01:09.9]} 33... Kc7 {[%clk 0:02:07.8]} 34. h3 {[%clk 0:01:06.5]} 34... Rf8
{[%clk 0:02:06.7]} 35. Bc4 {[%clk 0:01:04.3]} 35... Nd7 {[%clk 0:02:04.8]} 36.
Nxd7 {[%clk 0:01:03.8]} 36... Kxd7 {[%clk 0:02:05.7]} 37. Kf2 {[%clk 0:01:02.9]}
37... Rf4 {[%clk 0:02:05.6]} 38. Bd3 {[%clk 0:01:01.8]} 38... g5 {[%clk
0:02:05.8]} 39. Be4 {[%clk 0:00:59.4]} 39... Ke6 {[%clk 0:02:05.9]} 40. Ke3
{[%clk 0:00:58.5]} 40... Ke5 {[%clk 0:02:06.1]} 41. a4 {[%clk 0:00:56.1]} 41...
Rf8 {[%clk 0:02:00.6]} 42. b5 {[%clk 0:00:55.1]} 42... cxb5 {[%clk 0:01:54.1]}
43. axb5 {[%clk 0:00:56]} 43... axb5 {[%clk 0:01:55]} 44. Bxb7 {[%clk
0:00:55.6]} 44... b4 {[%clk 0:01:54.5]} 45. Kd3 {[%clk 0:00:53]} 45... Rb8
{[%clk 0:01:53.4]} 46. c6 {[%clk 0:00:51.1]} 46... Kd6 {[%clk 0:01:52.6]} 47.
Kc4 {[%clk 0:00:48.5]} 47... Rf8 {[%clk 0:01:53.1]} 48. Kxb4 {[%clk 0:00:42.6]}
48... Kc7 {[%clk 0:01:53.6]} 49. Ba6 {[%clk 0:00:33.7]} 49... Rxf3 {[%clk
0:01:54]} 50. Be2 {[%clk 0:00:29.8]} 50... Rxh3 {[%clk 0:01:52.9]} 51. Kc5
{[%clk 0:00:29]} 51... Rc3+ {[%clk 0:01:52.8]} 52. Kd5 {[%clk 0:00:29.1]} 52...
Rxc6 {[%clk 0:01:53.7]} 53. Ke5 {[%clk 0:00:29.1]} 53... Rd6 {[%clk 0:01:53.9]}
54. Kf5 {[%clk 0:00:28.7]} 54... Kd7 {[%clk 0:01:54.1]} 55. Bf3 {[%clk
0:00:28.6]} 55... Ke7 {[%clk 0:01:55]} 56. Be2 {[%clk 0:00:28.4]} 56... Rf6+
{[%clk 0:01:55]} 57. Ke4 {[%clk 0:00:25.2]} 57... Re6+ {[%clk 0:01:55.1]} 58.
Kd3 {[%clk 0:00:25.3]} 58... Kf6 {[%clk 0:01:54.7]} 59. Bf3 {[%clk 0:00:23.4]}
59... Ke5 {[%clk 0:01:55.6]} 60. Ke3 {[%clk 0:00:23.1]} 60... Re7 {[%clk
0:01:54.3]} 61. Bd1 {[%clk 0:00:20.9]} 61... Ra7 {[%clk 0:01:54.5]} 62. Kf3
{[%clk 0:00:17.7]} 62... Ra3+ {[%clk 0:01:55.4]} 63. Kf2 {[%clk 0:00:16.4]}
63... Kf4 {[%clk 0:01:56.3]} 64. Kg2 {[%clk 0:00:04.5]} 64... Rg3+ {[%clk
0:01:55.6]} 65. Kh2 {[%clk 0:00:02.2]} 65... Rxg4 {[%clk 0:01:56.5]} 66. Bxg4
{[%clk 0:00:02.8]} 66... Kxg4 {[%clk 0:01:57.4]} 67. Kg2 {[%clk 0:00:03.2]}
67... h5 {[%clk 0:01:58.3]} 68. Kh2 {[%clk 0:00:04.1]} 68... h4 {[%clk
0:01:59.2]} 69. Kg2 {[%clk 0:00:04.9]} 69... h3+ {[%clk 0:01:59.8]} 70. Kh2
{[%clk 0:00:05.8]} 70... Kh4 {[%clk 0:02:00.7]} 71. Kg1 {[%clk 0:00:06.1]} 71...
g4 {[%clk 0:02:01.6]} 72. Kh1 {[%clk 0:00:07]} 72... g3 {[%clk 0:02:02.5]} 73.
Kg1 {[%clk 0:00:07.9]} 73... Kg4 {[%clk 0:02:03.4]} 74. Kh1 {[%clk 0:00:08.2]}
74... Kf3 {[%clk 0:02:04.3]} 75. Kg1 {[%clk 0:00:08.7]} 75... g2 {[%clk
0:02:04.8]} 0-1

[Event "*** Titled Tuesday Blitz"]
[Site "Chess.com"]
[Date "2021.03.16"]
[Round "5"]
[White "Evgeny81"]
[Black "DenLaz"]
[Result "1-0"]
[WhiteElo "2778"]
[BlackElo "2839"]
[TimeControl "180+1"]
[EndTime "10:54:31 PDT"]
[Termination "Evgeny81 won by resignation"]

1. e4 {[%clk 0:03:00.9]} 1... e5 {[%clk 0:02:58.2]} 2. Nf3 {[%clk 0:03:00.9]}
2... Nc6 {[%clk 0:02:58.7]} 3. Bb5 {[%clk 0:03:00.9]} 3... a6 {[%clk 0:02:59]}
4. Ba4 {[%clk 0:03:00]} 4... Nf6 {[%clk 0:02:58.9]} 5. O-O {[%clk 0:03:00.2]}
5... Be7 {[%clk 0:02:57.4]} 6. Re1 {[%clk 0:03:00.1]} 6... b5 {[%clk 0:02:57.3]}
7. Bb3 {[%clk 0:03:00.5]} 7... d6 {[%clk 0:02:57]} 8. c3 {[%clk 0:02:59.7]} 8...
O-O {[%clk 0:02:57.1]} 9. d4 {[%clk 0:02:57.7]} 9... Bg4 {[%clk 0:02:56.3]} 10.
d5 {[%clk 0:02:56.5]} 10... Na5 {[%clk 0:02:56]} 11. Bc2 {[%clk 0:02:57]} 11...
c6 {[%clk 0:02:55.8]} 12. dxc6 {[%clk 0:02:56.2]} 12... Qc7 {[%clk 0:02:46.7]}
13. Nbd2 {[%clk 0:02:55.2]} 13... Qxc6 {[%clk 0:02:45.4]} 14. Nf1 {[%clk
0:02:54.8]} 14... Rfc8 {[%clk 0:02:37.1]} 15. h3 {[%clk 0:02:53.2]} 15... Be6
{[%clk 0:02:35]} 16. Ng3 {[%clk 0:02:38.9]} 16... h6 {[%clk 0:02:26.6]} 17. Bd3
{[%clk 0:02:30.8]} 17... Nc4 {[%clk 0:02:19.8]} 18. Qe2 {[%clk 0:02:28.8]} 18...
Bf8 {[%clk 0:02:17.8]} 19. Nh2 {[%clk 0:02:10.6]} 19... d5 {[%clk 0:02:13]} 20.
Ng4 {[%clk 0:02:06.8]} 20... Nxg4 {[%clk 0:01:54.9]} 21. hxg4 {[%clk 0:02:07.7]}
21... g6 {[%clk 0:01:47.2]} 22. b3 {[%clk 0:02:01.9]} 22... Nb6 {[%clk
0:01:44.8]} 23. Bd2 {[%clk 0:01:56.7]} 23... Bg7 {[%clk 0:01:43.9]} 24. Rad1
{[%clk 0:01:54.7]} 24... Re8 {[%clk 0:01:37.7]} 25. Be3 {[%clk 0:01:48.4]} 25...
Nd7 {[%clk 0:01:25.2]} 26. exd5 {[%clk 0:01:31.9]} 26... Bxd5 {[%clk 0:01:24.6]}
27. Be4 {[%clk 0:01:23.1]} 27... Nf6 {[%clk 0:01:08.9]} 28. Rxd5 {[%clk
0:01:15.8]} 28... Nxd5 {[%clk 0:01:09.8]} 29. c4 {[%clk 0:01:16.3]} 29... bxc4
{[%clk 0:00:50.4]} 30. bxc4 {[%clk 0:01:17.2]} 30... Rab8 {[%clk 0:00:45.4]} 31.
Bxd5 {[%clk 0:01:17]} 31... Qd7 {[%clk 0:00:46]} 32. Ne4 {[%clk 0:01:07.8]}
32... Kh7 {[%clk 0:00:43.3]} 33. g5 {[%clk 0:01:03.4]} 33... Qe7 {[%clk
0:00:34]} 34. Qf3 {[%clk 0:00:58.4]} 34... h5 {[%clk 0:00:33.5]} 35. Qxf7 {[%clk
0:00:55.3]} 35... Qxf7 {[%clk 0:00:33.4]} 36. Bxf7 {[%clk 0:00:56.2]} 36... Red8
{[%clk 0:00:34.3]} 37. Bd5 {[%clk 0:00:56]} 37... Rb2 {[%clk 0:00:34.3]} 38. a4
{[%clk 0:00:48]} 38... Bf8 {[%clk 0:00:32.8]} 39. Nc5 {[%clk 0:00:44.7]} 39...
Ra2 {[%clk 0:00:25.1]} 40. Ne6 {[%clk 0:00:43]} 40... Re8 {[%clk 0:00:22]} 41.
Nxf8+ {[%clk 0:00:43]} 41... Rxf8 {[%clk 0:00:22.9]} 42. c5 {[%clk 0:00:34.5]}
42... Rxa4 {[%clk 0:00:20.6]} 43. c6 {[%clk 0:00:34.8]} 43... Rd8 {[%clk
0:00:21]} 44. c7 {[%clk 0:00:31.8]} 44... Rc8 {[%clk 0:00:20.6]} 45. Rc1 {[%clk
0:00:31.7]} 1-0

[Event "*** Titled Tuesday Blitz"]
[Site "Chess.com"]
[Date "2021.03.16"]
[Round "5"]
[White "nrvisakh"]
[Black "SharapovEvgeny"]
[Result "1-0"]
[WhiteElo "2794"]
[BlackElo "2487"]
[TimeControl "180+1"]
[EndTime "10:54:31 PDT"]
[Termination "nrvisakh won by resignation"]

1. e4 {[%clk 0:03:00]} 1... c5 {[%clk 0:02:59.4]} 2. Nf3 {[%clk 0:02:59.3]} 2...
d6 {[%clk 0:02:59.6]} 3. d4 {[%clk 0:02:54.9]} 3... cxd4 {[%clk 0:02:59]} 4.
Nxd4 {[%clk 0:02:55.8]} 4... Nf6 {[%clk 0:02:58.2]} 5. f3 {[%clk 0:02:55.8]}
5... e6 {[%clk 0:02:56.3]} 6. c4 {[%clk 0:02:55]} 6... Be7 {[%clk 0:02:55.9]} 7.
Nc3 {[%clk 0:02:55.3]} 7... O-O {[%clk 0:02:55.7]} 8. Be2 {[%clk 0:02:55.4]}
8... Nbd7 {[%clk 0:02:55.3]} 9. Be3 {[%clk 0:02:55.2]} 9... d5 {[%clk 0:02:55]}
10. cxd5 {[%clk 0:02:48.2]} 10... exd5 {[%clk 0:02:54.6]} 11. O-O {[%clk
0:02:36.4]} 11... dxe4 {[%clk 0:02:53.8]} 12. fxe4 {[%clk 0:02:36.6]} 12... Ne5
{[%clk 0:02:48.9]} 13. Nf5 {[%clk 0:02:33.1]} 13... Bxf5 {[%clk 0:02:36.6]} 14.
Rxf5 {[%clk 0:02:28.6]} 14... Ng6 {[%clk 0:02:25.6]} 15. Qf1 {[%clk 0:02:15.5]}
15... a6 {[%clk 0:02:19.4]} 16. e5 {[%clk 0:02:03.5]} 16... Nd5 {[%clk
0:02:04.5]} 17. Nxd5 {[%clk 0:01:59.8]} 17... Qxd5 {[%clk 0:02:03.7]} 18. Bc4
{[%clk 0:02:00.3]} 18... Qe4 {[%clk 0:02:03.5]} 19. Re1 {[%clk 0:01:56.2]} 19...
Kh8 {[%clk 0:01:47.1]} 20. Bxf7 {[%clk 0:01:48]} 20... Nh4 {[%clk 0:01:44]} 21.
Rf4 {[%clk 0:01:41.5]} 21... Qxe5 {[%clk 0:01:38.2]} 22. Bd4 {[%clk 0:01:37.8]}
22... Qg5 {[%clk 0:01:30.9]} 23. Re5 {[%clk 0:01:28.3]} 23... Qxf4 {[%clk
0:01:22.5]} 24. Qxf4 {[%clk 0:01:27.4]} 24... Ng6 {[%clk 0:01:22.6]} 25. Qf5
{[%clk 0:00:51.6]} 25... Nxe5 {[%clk 0:01:21]} 26. Bxe5 {[%clk 0:00:52.5]} 26...
Bf6 {[%clk 0:01:04.5]} 27. Bd5 {[%clk 0:00:42]} 27... Bxe5 {[%clk 0:01:03.1]}
28. Qxe5 {[%clk 0:00:41.3]} 28... Rae8 {[%clk 0:01:02.9]} 29. Qc3 {[%clk
0:00:37.3]} 29... b5 {[%clk 0:00:58.6]} 30. h3 {[%clk 0:00:36.2]} 30... Rd8
{[%clk 0:00:55.7]} 31. Bf3 {[%clk 0:00:35.7]} 31... h6 {[%clk 0:00:53.7]} 32.
Kh2 {[%clk 0:00:35.3]} 32... Rf6 {[%clk 0:00:52.9]} 33. Qe5 {[%clk 0:00:35.1]}
33... Rdf8 {[%clk 0:00:46.2]} 34. Be4 {[%clk 0:00:35]} 34... Rd8 {[%clk
0:00:44.9]} 35. Bc2 {[%clk 0:00:34.5]} 35... Rdf8 {[%clk 0:00:41.7]} 36. Qe4
{[%clk 0:00:34.5]} 36... g6 {[%clk 0:00:39.6]} 37. Qe7 {[%clk 0:00:32.8]} 37...
R8f7 {[%clk 0:00:37.9]} 38. Qd8+ {[%clk 0:00:27.9]} 38... Kg7 {[%clk 0:00:37.2]}
39. Bb3 {[%clk 0:00:26.9]} 39... Rf8 {[%clk 0:00:32.5]} 40. Qe7+ {[%clk
0:00:26.7]} 40... Kh8 {[%clk 0:00:32.3]} 41. Bd5 {[%clk 0:00:26.8]} 41... Rf5
{[%clk 0:00:29.8]} 42. Be4 {[%clk 0:00:26.5]} 42... R5f7 {[%clk 0:00:28]} 43.
Qe5+ {[%clk 0:00:24.3]} 43... Kh7 {[%clk 0:00:25.7]} 44. h4 {[%clk 0:00:24.4]}
1-0

[Event "*** Titled Tuesday Blitz"]
[Site "Chess.com"]
[Date "2021.03.16"]
[Round "5"]
[White "GM_LOADING"]
[Black "dennisodessa"]
[Result "0-1"]
[WhiteElo "2554"]
[BlackElo "2357"]
[TimeControl "180+1"]
[EndTime "10:54:36 PDT"]
[Termination "dennisodessa won by checkmate"]

1. e4 {[%clk 0:02:59.9]} 1... e6 {[%clk 0:03:00.9]} 2. d4 {[%clk 0:02:53.1]}
2... d5 {[%clk 0:03:01.1]} 3. Nc3 {[%clk 0:02:47.7]} 3... Nc6 {[%clk 0:03:01.1]}
4. Bb5 {[%clk 0:02:41.2]} 4... dxe4 {[%clk 0:02:59.8]} 5. Bxc6+ {[%clk
0:02:37.8]} 5... bxc6 {[%clk 0:02:58.3]} 6. Nxe4 {[%clk 0:02:37.2]} 6... Nf6
{[%clk 0:02:58.5]} 7. Bg5 {[%clk 0:02:26.6]} 7... Be7 {[%clk 0:02:51.6]} 8.
Nxf6+ {[%clk 0:02:25]} 8... Bxf6 {[%clk 0:02:52.5]} 9. Bxf6 {[%clk 0:02:25.4]}
9... Qxf6 {[%clk 0:02:52.3]} 10. Qf3 {[%clk 0:02:18.9]} 10... O-O {[%clk
0:02:41.7]} 11. Qxf6 {[%clk 0:02:17.4]} 11... gxf6 {[%clk 0:02:42.6]} 12. Nf3
{[%clk 0:02:14.8]} 12... Bb7 {[%clk 0:02:37.8]} 13. Ke2 {[%clk 0:02:10.8]} 13...
Rfd8 {[%clk 0:02:34.6]} 14. Rhd1 {[%clk 0:02:10.7]} 14... Rd7 {[%clk 0:02:34.5]}
15. Rd2 {[%clk 0:02:08.4]} 15... Rad8 {[%clk 0:02:35.4]} 16. Rad1 {[%clk
0:02:08.6]} 16... Kf8 {[%clk 0:02:34.7]} 17. Ke3 {[%clk 0:02:07.5]} 17... Ke7
{[%clk 0:02:35.6]} 18. b4 {[%clk 0:02:05.3]} 18... a5 {[%clk 0:02:27.8]} 19. a3
{[%clk 0:02:04.1]} 19... axb4 {[%clk 0:02:26.1]} 20. axb4 {[%clk 0:02:05]} 20...
Ra8 {[%clk 0:02:26.2]} 21. c3 {[%clk 0:01:58.7]} 21... Ra3 {[%clk 0:02:22]} 22.
Rc1 {[%clk 0:01:48.8]} 22... Ba6 {[%clk 0:02:21.5]} 23. Ne1 {[%clk 0:01:30.2]}
23... Rd8 {[%clk 0:02:13.6]} 24. Nd3 {[%clk 0:01:29.6]} 24... Bxd3 {[%clk
0:02:13.4]} 25. Kxd3 {[%clk 0:01:28.9]} 25... Rda8 {[%clk 0:02:11.7]} 26. Kc4
{[%clk 0:01:26.7]} 26... Kd6 {[%clk 0:02:10.8]} 27. Rd3 {[%clk 0:01:22.9]} 27...
Ra2 {[%clk 0:02:09.7]} 28. Rf3 {[%clk 0:01:22.9]} 28... f5 {[%clk 0:02:09.5]}
29. Rg1 {[%clk 0:01:18.6]} 29... h5 {[%clk 0:01:58.5]} 30. Rf1 {[%clk
0:00:59.5]} 30... Rc2 {[%clk 0:01:55.1]} 31. Re1 {[%clk 0:00:45.4]} 31... Raa2
{[%clk 0:01:52.6]} 32. Rf1 {[%clk 0:00:43.8]} 32... Re2 {[%clk 0:01:14.9]} 33.
Rf4 {[%clk 0:00:32.8]} 33... Red2 {[%clk 0:01:06.4]} 34. g3 {[%clk 0:00:25.4]}
34... Rdc2 {[%clk 0:00:50.3]} 35. h3 {[%clk 0:00:24.7]} 35... Ra3 {[%clk
0:00:50]} 36. Rf3 {[%clk 0:00:25.1]} 36... Raa2 {[%clk 0:00:50]} 37. Rf4 {[%clk
0:00:23]} 37... Ra3 {[%clk 0:00:49.6]} 38. Rf3 {[%clk 0:00:23]} 38... Raa2
{[%clk 0:00:50.5]} 39. Kb3 {[%clk 0:00:15.8]} 39... f6 {[%clk 0:00:46.2]} 40.
Kc4 {[%clk 0:00:10.3]} 40... Ra3 {[%clk 0:00:42.9]} 41. Rg1 {[%clk 0:00:07.7]}
41... e5 {[%clk 0:00:24.6]} 42. Rxf5 {[%clk 0:00:06.6]} 42... Raxc3# {[%clk
0:00:22.2]} 0-1